bitfinex-derivatives/quotes_ETHF0:USTF0_20250927
["timestamp","ask_amount","ask_price","bid_price","bid_amount"]
[1759001876021,5.96909711,3999.0,3998.9,0.7654]
[1759001876217,6.21909711,3999.0,3998.9,0.7654]
[1759001890626,5.86254753,3999.0,3998.9,0.7654]
[1759001892527,5.86344599,3999.0,3998.9,0.7654]
[1759001893227,4.41452463,3999.0,3998.9,0.7654]
[1759001893430,3.96467463,3999.0,3998.9,0.7654]
[1759001895129,3.71467463,3999.0,3998.9,0.7654]
[1759001903138,3.96467463,3999.0,3998.9,0.7654]
[1759001903723,5.41359599,3999.0,3998.9,0.3163]
[1759001904456,3.96467463,3999.0,3998.9,0.3163]
[1759001911734,3.96467463,3999.0,3998.9,0.5404]
[1759001911936,3.96467463,3999.0,3998.9,0.7477]
[1759001917635,3.96467463,3999.0,3998.9,0.2477]
[1759001917938,4.41452463,3999.0,3998.5,0.1279]
[1759001918146,0.50687463,3998.9,3998.8,0.4314]
[1759001918534,0.95673463,3998.9,3998.5,0.5778]
[1759001918746,0.44986,3998.9,3998.8,0.4314]
[1759001918937,1.2059616,3998.9,3998.8,0.4314]
[1759001919329,2.65488296,3998.9,3998.8,0.4314]
[1759001919738,2.65488296,3998.9,3998.8,0.7433]
[1759001922038,2.65488296,3998.9,3998.8,0.2433]
[1759001922243,2.94438296,3998.9,3998.8,0.4674]
[1759001922443,2.49452296,3998.9,3998.8,0.4674]
[1759001922741,2.49452296,3998.9,3998.8,0.6747]
[1759001922943,2.94438296,3998.9,3998.8,0.6747]
[1759001925045,2.69438296,3998.9,3998.8,0.6747]
[1759001925246,2.94438296,3998.9,3998.8,0.6747]
[1759001925545,3.26418296,3998.9,3998.8,0.3988]
[1759001927443,3.26418296,3998.9,3998.8,0.7107]
[1759001938148,0.7706,3998.3,3998.2,0.31747892]
[1759001938355,0.7706,3998.3,3997.9,0.5868]
[1759001938356,0.9063,3998.0,3997.9,0.5868]
[1759001938550,1.4124016,3998.0,3997.9,0.5868]
[1759001939453,1.41420177,3998.0,3997.9,0.58956666]
[1759001940254,1.41420177,3998.0,3997.9,0.90516666]
[1759001944282,1.41420177,3998.0,3997.9,0.77016666]
[1759001945370,1.41721512,3998.0,3997.9,0.77016666]
[1759001946970,1.41721512,3998.0,3997.9,0.22986666]
[1759001947270,1.41721512,3998.0,3997.9,0.00276666]
[1759001947467,1.86717512,3998.0,3997.9,0.00276666]
[1759001948571,0.75904,3997.3,3997.2,3.4191]
[1759001948873,0.75904,3997.3,3997.0,0.03647758]
[1759001948874,1.19656,3997.1,3997.0,0.03647758]
[1759001949061,1.70567495,3997.1,3997.0,0.03647758]
[1759001949568,1.70567495,3997.1,3997.0,0.03934319]
[1759001950264,3.15459631,3997.1,3997.0,0.03934319]
[1759001950468,3.40459631,3997.1,3997.0,0.00286561]
[1759001951674,2.95453631,3997.1,3997.0,0.00286561]
[1759001952573,1.50561495,3997.1,3997.0,0.00286561]
[1759001953376,1.25561495,3997.1,3997.0,0.76456561]
[1759001953675,3.5168,3997.6,3997.3,0.4318]
[1759001953884,0.309,3997.6,3997.5,1.32832]
[1759001954267,0.81646235,3997.6,3997.5,1.32832]
[1759001954470,0.309,3997.6,3997.5,1.32832]
[1759001954870,0.5196,3997.6,3997.5,1.32832]
[1759001955071,0.5196,3997.6,3997.5,1.21172]
[1759001965279,0.5196,3997.6,3997.5,1.46172]
[1759001966285,1.02930823,3997.6,3997.5,1.46172]
[1759001967085,1.02930823,3997.6,3997.5,1.21172]
[1759001967288,1.02930823,3997.6,3997.5,1.46172]
[1759001971987,1.02930823,3997.6,3997.3,3.2078]
[1759001971988,0.45003,3997.4,3997.3,3.2078]
[1759001972192,0.7289,3997.1,3997.0,0.00286561]
[1759001972392,1.23898124,3997.1,3997.0,0.00286561]
[1759001983599,1.68904124,3997.1,3997.0,0.00286561]
[1759001992707,1.69479693,3997.1,3997.0,0.00286561]
[1759001997005,1.24473693,3997.1,3997.0,0.22236561]
[1759001997410,1.69479693,3997.1,3997.0,0.22236561]
[1759001997704,1.69479693,3997.1,3997.0,0.54986561]
[1759001999606,1.69479693,3997.1,3997.0,0.22236561]
[1759002001613,1.69479693,3997.1,3997.0,0.00286561]
[1759002002806,3.50174343,3997.1,3997.0,0.00286561]
[1759002004710,0.4348,3996.2,3995.9,1.34467124]
[1759002004917,0.8835,3996.0,3995.9,0.2195]
[1759002005111,1.39933693,3996.0,3995.9,0.547]
[1759002005308,1.39933693,3996.0,3995.9,0.7602]
[1759002005714,1.39933693,3996.0,3995.9,0.76294707]
[1759002006213,0.51583693,3996.0,3995.9,0.76294707]
[1759002006415,0.5423,3996.2,3996.1,1.21037]
[1759002006617,1.05886977,3996.2,3996.1,1.21037]
[1759002006818,1.26936977,3996.2,3996.1,1.21037]
[1759002010220,1.26936977,3996.2,3996.1,0.7602]
[1759002012021,1.26936977,3996.2,3996.1,0.4327]
[1759002012422,1.20377,3996.1,3996.0,0.45018]
[1759002012622,1.72033977,3996.1,3996.0,0.45018]
[1759002013121,1.72033977,3996.1,3996.0,0.67108]
[1759002020863,1.72033977,3996.1,3996.0,1.00438]
[1759002021024,1.72033977,3996.1,3996.0,0.67108]
[1759002022030,1.72033977,3996.1,3996.0,0.92208]
[1759002028228,1.27016977,3996.1,3996.0,0.92208]
[1759002028429,1.27016977,3996.1,3996.0,1.25818]
[1759002029337,1.27016977,3996.1,3996.0,1.46558]
[1759002029636,1.72033977,3996.1,3996.0,1.46558]
[1759002030639,1.27016977,3996.1,3996.0,1.46558]
[1759002035945,3.17100997,3996.1,3996.0,0.92208]
[1759002036145,1.35098,3996.0,3995.9,0.00274707]
[1759002036346,1.86754977,3996.0,3995.9,0.00274707]
[1759002036545,1.2269,3995.9,3995.8,0.251]
[1759002036750,1.74346977,3995.9,3995.8,0.251]
[1759002037551,1.74346977,3995.9,3995.8,0.25353535]
[1759002038152,3.19413997,3995.9,3995.8,0.25353535]
[1759002039952,3.19413997,3995.9,3995.8,0.00253535]
[1759002041953,3.19413997,3995.9,3995.8,0.45274535]
[1759002045651,1.29326977,3995.9,3995.8,0.67084535]
[1759002045854,1.07126977,3995.9,3995.8,2.66501555]
[1759002046054,0.51656977,3995.9,3995.8,2.66501555]
[1759002046352,0.51656977,3996.0,3995.8,2.66501555]
[1759002046558,0.3315,3995.9,3995.8,2.32891555]
[1759002046757,1.07126977,3995.9,3995.8,2.32891555]
[1759002047056,1.07126977,3995.9,3995.8,2.66501555]
[1759002048260,1.07126977,3995.9,3995.8,1.21434535]
[1759002050049,1.29326977,3995.9,3995.8,1.21434535]
[1759002054061,1.29326977,3995.9,3995.8,1.46534535]
[1759002054663,1.29326977,3995.9,3995.8,1.21434535]
[1759002054960,1.29326977,3995.9,3995.8,1.46534535]
[1759002060861,1.04696977,3995.9,3995.8,1.46534535]
[1759002062169,1.70486977,3995.9,3995.8,1.46534535]
[1759002062871,1.70486977,3995.9,3995.8,1.21434535]
[1759002063173,1.70486977,3995.9,3995.8,1.46534535]
[1759002064760,1.70486977,3995.9,3995.8,1.21434535]
[1759002064964,1.70486977,3995.9,3995.8,1.01513535]
[1759002066373,1.70486977,3995.9,3995.8,0.25353535]
[1759002068483,1.70486977,3995.9,3995.8,0.00253535]
[1759002068974,1.70486977,3995.9,3995.8,0.25353535]
[1759002069173,1.70486977,3995.9,3995.8,0.00253535]
[1759002069365,1.70486977,3995.9,3995.8,0.25353535]
[1759002071477,1.70486977,3995.9,3995.8,0.00253535]
[1759002072582,3.5130947,3995.9,3995.8,0.00253535]
[1759002082386,1.70486977,3995.9,3995.8,0.00253535]
[1759002082786,1.70486977,3995.9,3995.8,0.22743535]
[1759002083892,1.70486977,3995.9,3995.8,0.00253535]
[1759002084103,1.84730804,3997.7,3997.6,0.45001]
[1759002084329,10.40013838,3999.6,3997.7,11.24994]
[1759002084591,0.4422,3999.3,3999.2,1.80822493]
[1759002084794,0.4422,3999.3,3999.2,2.39198145]
[1759002084981,0.4422,3999.3,3999.2,0.58375652]
[1759002085288,0.44523906,3999.3,3999.2,2.70194278]
[1759002085485,0.44523906,3999.3,3999.2,2.37318626]
[1759002086092,0.75883906,3999.3,3999.2,1.03232842]
[1759002086391,0.75883906,3999.3,3999.2,1.92449791]
[1759002086591,0.75883906,3999.3,3999.2,2.27748566]
[1759002087392,0.75883906,3999.3,3999.2,1.38531617]
[1759002088689,0.75883906,3999.3,3999.2,1.74455012]
[1759002089290,0.75883906,3999.3,3999.2,2.4113338]
[1759002090187,0.75883906,3999.3,3999.2,1.74455012]
[1759002095396,0.75883906,3999.3,3999.2,1.13031617]
[1759002095597,0.75883906,3999.3,3999.2,1.74313688]
[1759002105699,2.55894181,3999.3,3999.2,1.74313688]
[1759002106399,2.55894181,3999.3,3999.2,2.19296688]
[1759002107308,2.55894181,3999.3,3999.2,2.85975056]
[1759002108410,2.55894181,3999.3,3999.2,1.83997913]
[1759002108609,2.55894181,3999.3,3999.2,2.23066199]
[1759002110810,5.7575573,3999.3,3999.2,2.23066199]
[1759002112408,5.7575573,3999.3,3999.2,4.01501752]
[1759002113213,4.40738147,3999.3,3999.2,1.87184128]
[1759002113512,4.85468147,3999.3,3999.2,1.87184128]
[1759002114211,2.83181047,3999.3,3999.2,1.87184128]
[1759002115315,3.14891047,3999.3,3999.2,1.87184128]
[1759002117107,3.14891047,3999.3,3999.2,1.48115842]
[1759002117315,3.14891047,3999.3,3999.2,1.81931149]
[1759002118010,3.14891047,3999.3,3999.2,1.48115842]
[1759002121128,0.76679217,3999.3,3999.2,1.48115842]
[1759002121323,3.14891047,3999.3,3999.2,1.48115842]
[1759002125428,3.14891047,3999.3,3999.2,0.70662001]
[1759002128627,0.31949217,3999.3,3999.2,0.70662001]
[1759002128830,0.54519217,3999.3,3999.2,0.70662001]
[1759002129028,0.77309217,3999.3,3999.2,0.70662001]
[1759002131230,0.31949217,3999.3,3999.2,0.70662001]
[1759002131424,0.54519217,3999.3,3999.2,0.70662001]
[1759002132034,0.77309217,3999.3,3999.2,0.70662001]
[1759002134547,0.77309217,3999.3,3999.2,2.15435606]
[1759002137253,0.77309217,3999.3,3999.2,3.95116822]
[1759002139055,0.77309217,3999.3,3999.2,2.15435606]
[1759002147557,0.77309217,3999.3,3999.2,0.45262001]
[1759002147860,0.77309217,3999.3,3999.2,2.15335606]
[1759002147861,3.15521047,3999.3,3999.2,2.15335606]
[1759002150664,0.77309217,3999.3,3999.2,2.15335606]
[1759002150865,3.15521047,3999.3,3999.2,2.15335606]
[1759002151963,0.77309217,3999.3,3999.2,2.15335606]
[1759002152165,3.15521047,3999.3,3999.2,2.15335606]
[1759002152970,3.15521047,3999.3,3999.2,1.90035606]
[1759002153169,3.15521047,3999.3,3999.2,2.15335606]
[1759002155070,0.77309217,3999.3,3999.2,2.15335606]
[1759002155270,3.15521047,3999.3,3999.2,2.15335606]
[1759002160767,3.15521047,3999.3,3999.2,1.90035606]
[1759002160974,3.15521047,3999.3,3999.2,2.15335606]
[1759002161773,0.77309217,3999.3,3999.2,2.15335606]
[1759002162873,3.15521047,3999.3,3999.2,2.15335606]
[1759002165177,0.77309217,3999.3,3999.2,2.15335606]
[1759002165376,3.15521047,3999.3,3999.2,2.15335606]
[1759002166878,3.60503047,3999.3,3999.2,0.00279001]
[1759002167086,3.60503047,3999.3,3999.2,0.25479001]
[1759002170870,3.15521047,3999.3,3999.2,1.70252606]
[1759002173580,0.77309217,3999.3,3999.2,1.70252606]
[1759002173780,3.15521047,3999.3,3999.2,1.70252606]
[1759002179287,0.77309217,3999.3,3999.2,1.70252606]
[1759002179476,3.15521047,3999.3,3999.2,1.70252606]
[1759002180281,3.15521047,3999.3,3999.2,2.15235606]
[1759002180895,3.15521047,3999.3,3999.2,5.36015606]
[1759002182385,3.15521047,3999.3,3999.2,5.10815606]
[1759002182585,3.15521047,3999.3,3999.2,5.36015606]
[1759002184086,3.15521047,3999.3,3999.2,3.66042001]
[1759002184279,3.15521047,3999.3,3999.2,5.10815606]
[1759002184683,3.15521047,3999.3,3999.2,5.36015606]
[1759002189291,0.77309217,3999.3,3999.2,5.36015606]
[1759002189492,3.15521047,3999.3,3999.2,4.55895633]
[1759002189692,3.15521047,3999.3,3999.2,1.60315633]
[1759002192396,3.15521047,3999.3,3999.2,0.25479001]
[1759002196290,3.15521047,3999.3,3999.2,0.70462001]
[1759002197808,0.77309217,3999.3,3999.2,0.70462001]
[1759002202806,3.15521047,3999.3,3999.2,0.70462001]
[1759002204108,0.77309217,3999.3,3999.2,0.70462001]
[1759002204413,3.15521047,3999.3,3999.2,0.70462001]
[1759002205715,3.15521047,3999.3,3999.2,2.50938405]
[1759002205918,3.15521047,3999.3,3999.2,3.85775037]
[1759002208022,0.77309217,3999.3,3999.2,3.85775037]
[1759002208319,3.15521047,3999.3,3999.2,3.85775037]
[1759002209420,0.77309217,3999.3,3999.2,3.85775037]
[1759002209619,3.15521047,3999.3,3999.2,3.85775037]
[1759002214827,3.15521047,3999.3,3999.2,3.60575037]
[1759002215030,3.15521047,3999.3,3999.2,3.85775037]
[1759002216840,0.77309217,3999.3,3999.2,3.85775037]
[1759002217132,3.15521047,3999.3,3999.2,3.85775037]
[1759002219840,0.77309217,3999.3,3999.2,3.85775037]
[1759002220829,3.15521047,3999.3,3999.2,3.60575037]
[1759002221034,3.15521047,3999.3,3999.2,3.85775037]
[1759002222734,0.77309217,3999.3,3999.2,3.85775037]
[1759002225839,0.77309217,3999.3,3999.2,3.60575037]
[1759002226039,0.77309217,3999.3,3999.2,3.85675037]
[1759002229745,0.77309217,3999.3,3999.2,2.25738405]
[1759002229938,0.77309217,3999.3,3999.2,2.50838405]
[1759002231246,0.77309217,3999.3,3999.2,2.25738405]
[1759002231439,0.77309217,3999.3,3999.2,2.50838405]
[1759002233946,0.31949217,3999.3,3999.2,2.50838405]
[1759002234944,2.91801047,3999.3,3999.2,2.50838405]
[1759002235740,0.53589217,3999.3,3999.2,5.71618405]
[1759002235949,3.12881047,3999.3,3999.2,2.50838405]
[1759002244952,0.74669217,3999.3,3999.2,2.50838405]
[1759002245146,3.12881047,3999.3,3999.2,2.50838405]
[1759002246751,0.74669217,3999.3,3999.2,2.50838405]
[1759002247752,3.12881047,3999.3,3999.2,2.50838405]
[1759002249752,0.74669217,3999.3,3999.2,2.50838405]
[1759002254554,0.74669217,3999.3,3999.2,2.15167169]
[1759002258853,0.74669217,3999.3,3999.2,1.90067169]
[1759002259062,0.74669217,3999.3,3999.2,2.15167169]
[1759002261854,3.12881047,3999.3,3999.2,2.15167169]
[1759002264557,0.74669217,3999.3,3999.2,2.15167169]
[1759002264758,3.12881047,3999.3,3999.2,2.15167169]
[1759002265754,0.74669217,3999.3,3999.2,2.15167169]
[1759002265982,3.12881047,3999.3,3999.2,2.15167169]
[1759002267562,0.74669217,3999.3,3999.2,2.15167169]
[1759002267759,3.12881047,3999.3,3999.2,2.15167169]
[1759002269760,3.12881047,3999.3,3999.2,5.35947169]
[1759002271461,0.74669217,3999.3,3999.2,5.35947169]
[1759002271663,3.12881047,3999.3,3999.2,5.35947169]
[1759002272763,0.74669217,3999.3,3999.2,5.35947169]
[1759002276764,0.74669217,3999.3,3999.2,2.15167169]
[1759002277066,0.74669217,3999.3,3999.2,5.35947169]
[1759002277769,0.74669217,3999.3,3999.2,2.15167169]
[1759002277969,0.74669217,3999.3,3999.2,5.35947169]
[1759002294784,0.74669217,3999.3,3999.2,2.15167169]
[1759002294979,0.74669217,3999.3,3999.2,5.35947169]
[1759002301888,0.74669217,3999.3,3999.2,2.15167169]
[1759002302210,0.74669217,3999.3,3999.2,5.35947169]
[1759002315602,1.19651217,3999.3,3999.2,3.21059001]
[1759002315805,1.19651217,3999.3,3999.0,2.0]
[1759002315806,1.22044,3999.1,3999.0,2.0]
[1759002316002,5.87629168,3999.1,3999.0,2.251]
[1759002316306,5.87629168,3999.1,3999.0,2.92546203]
[1759002316610,4.42824,3999.1,3999.0,2.92546203]
[1759002316796,4.42824,3999.1,3999.0,2.92846284]
[1759002317307,4.42824,3999.1,3999.0,2.25400081]
[1759002318497,1.22044,3999.1,3999.0,2.25400081]
[1759002319999,3.6025583,3999.1,3999.0,2.25400081]
[1759002327511,3.6025583,3999.1,3999.0,2.00300081]
[1759002335017,8.61566174,3999.1,3999.0,2.00300081]
[1759002335211,8.61566174,3999.1,3999.0,1.50300081]
[1759002338008,8.61566174,3999.1,3999.0,1.00480081]
[1759002340626,8.61566174,3999.1,3999.0,0.50480081]
[1759002344919,6.23354344,3999.1,3999.0,0.00480081]
[1759002345117,8.61566174,3999.1,3999.0,0.00480081]
[1759002352033,6.23354344,3999.1,3999.0,0.00480081]
[1759002352232,8.61566174,3999.1,3999.0,0.00480081]
[1759002354540,6.23354344,3999.1,3999.0,0.00480081]
[1759002354734,8.61566174,3999.1,3999.0,0.00480081]
[1759002357235,6.8103583,3999.1,3999.0,0.00480081]
[1759002357434,7.0613583,3999.1,3999.0,0.00480081]
[1759002368046,4.67924,3999.1,3999.0,0.00480081]
[1759002368840,7.0613583,3999.1,3999.0,0.00480081]
[1759002372453,4.67924,3999.1,3999.0,0.00480081]
[1759002372650,8.86666174,3999.1,3999.0,0.00480081]
[1759002376659,8.51004485,3999.1,3999.0,0.00480081]
[1759002378056,6.12792655,3999.1,3999.0,0.00480081]
[1759002379857,2.92012655,3999.1,3999.0,0.00480081]
[1759002380052,6.12792655,3999.1,3999.0,0.00480081]
[1759002382759,8.51004485,3999.1,3999.0,0.00480081]
[1759002384962,6.12792655,3999.1,3999.0,0.00480081]
[1759002385158,8.51004485,3999.1,3999.0,0.00480081]
[1759002390966,6.12792655,3999.1,3999.0,0.00480081]
[1759002391154,8.51004485,3999.1,3999.0,0.00480081]
[1759002393859,6.12792655,3999.1,3999.0,0.00480081]
[1759002394863,8.51004485,3999.1,3999.0,0.00480081]
[1759002395966,6.12792655,3999.1,3999.0,0.00480081]
[1759002396168,8.51004485,3999.1,3999.0,0.00480081]
[1759002398367,6.12792655,3999.1,3999.0,0.00480081]
[1759002398565,8.51004485,3999.1,3999.0,0.00480081]
[1759002400066,6.12792655,3999.1,3999.0,0.00480081]
[1759002400267,8.51004485,3999.1,3999.0,0.00480081]
[1759002402071,6.12792655,3999.1,3999.0,0.00480081]
[1759002402263,8.51004485,3999.1,3999.0,0.00480081]
[1759002403970,5.30224485,3999.1,3999.0,0.00480081]
[1759002406867,2.92012655,3999.1,3999.0,0.00480081]
[1759002407171,5.30224485,3999.1,3999.0,0.00480081]
[1759002408274,2.92012655,3999.1,3999.0,0.00480081]
[1759002408474,5.30224485,3999.1,3999.0,0.00480081]
[1759002409572,2.92012655,3999.1,3999.0,0.00480081]
[1759002409772,5.30224485,3999.1,3999.0,0.00480081]
[1759002411675,2.92012655,3999.1,3999.0,0.00480081]
[1759002411875,5.30224485,3999.1,3999.0,0.00480081]
[1759002412975,2.92012655,3999.1,3999.0,0.00480081]
[1759002413174,5.30224485,3999.1,3999.0,0.00480081]
[1759002413875,3.8535583,3999.1,3999.0,0.00480081]
[1759002416072,1.47144,3999.1,3999.0,0.00480081]
[1759002416274,3.8535583,3999.1,3999.0,0.00480081]
[1759002419979,1.47144,3999.1,3999.0,0.00480081]
[1759002420173,7.0613583,3999.1,3999.0,0.00480081]
[1759002421476,4.67924,3999.1,3999.0,0.00480081]
[1759002421676,7.0613583,3999.1,3999.0,0.00480081]
[1759002423077,3.9784,3999.1,3999.0,0.00480081]
[1759002423270,0.3207,3999.1,3999.0,8.0544204]
[1759002423473,0.3207,3999.1,3999.0,6.70448736]
[1759002424074,0.3207,3999.1,3999.0,5.25580081]
[1759002424272,0.3207,3999.1,3999.0,6.6043704]
[1759002425375,0.3207,3999.1,3999.0,5.25580081]
[1759002426374,1e-08,3999.1,3999.0,8.46360081]
[1759002426583,0.1233,3999.5,3999.3,1.12452]
[1759002426770,0.1233,3999.5,3999.4,4.90748655]
[1759002426973,0.1233,3999.5,3999.4,9.90748655]
[1759002427481,0.12588361,3999.5,3999.4,9.90748655]
[1759002427979,0.12588361,3999.5,3999.4,10.35728655]
[1759002428177,0.12588361,3999.5,3999.4,3.6576]
[1759002428374,0.12588361,3999.5,3999.4,5.35728655]
[1759002429282,0.12588361,3999.5,3999.4,6.7010411]
[1759002431282,0.12588361,3999.5,3999.4,5.35728655]
[1759002432179,0.12588361,3999.5,3999.4,10.35728655]
[1759002438591,0.12588361,3999.5,3999.4,10.71255507]
[1759002438893,0.55668361,3999.5,3999.4,6.60654191]
[1759002440899,0.55668361,3999.5,3999.4,6.35554191]
[1759002441089,0.55668361,3999.5,3999.4,5.71255507]
[1759002441287,0.55668361,3999.5,3999.4,6.60654191]
[1759002443194,0.88848361,3999.5,3999.4,6.60654191]
[1759002446302,0.88848361,3999.5,3999.4,5.71255507]
[1759002449499,0.88848361,3999.5,3999.4,7.05630962]
[1759002451103,0.88848361,3999.5,3999.4,5.71255507]
[1759002452707,0.67548361,3999.5,3999.4,5.71255507]
[1759002456208,0.67548361,3999.5,3999.4,7.5081116]
[1759002458108,0.45768361,3999.5,3999.4,5.71255507]
[1759002461806,0.3436,4000.0,3999.9,0.44975]
[1759002462004,0.5619,4000.0,3999.9,5.71250507]
[1759002462911,0.5637983,4000.0,3999.9,5.71250507]
[1759002463811,0.8955983,4000.0,3999.9,5.71250507]
[1759002464010,0.6772983,4000.0,3999.9,5.71250507]
[1759002468311,0.6772983,4000.0,3999.9,5.9099447]
[1759002469618,0.6772983,4000.0,3999.9,5.71250507]
[1759002471112,0.4571983,4000.0,3999.9,5.71250507]
[1759002471317,0.4571983,4000.0,3999.9,7.51018066]
[1759002471618,0.4571983,4000.0,3999.9,5.71250507]
[1759002484730,0.4571983,4000.0,3999.9,7.51018066]
[1759002484925,0.4571983,4000.0,3999.9,5.71250507]
[1759002485532,0.4571983,4000.0,3999.9,7.51018066]
[1759002486529,0.4571983,4000.0,3999.9,5.71250507]
[1759002489432,0.4571983,4000.0,3999.9,7.51018066]
[1759002495334,3.2078,4001.9,4001.4,0.44958]
[1759002495526,3.2078,4001.9,4001.4,3.85130815]
[1759002495734,0.1239,4002.0,4001.4,2.50453507]
[1759002496231,0.13723591,4001.5,4001.4,2.50453507]
[1759002497237,0.46673591,4001.5,4001.4,2.50453507]
[1759002498332,0.46673591,4001.5,4001.4,3.84627978]
[1759002500138,0.46673591,4001.5,4001.4,2.50453507]
[1759002500638,0.46673591,4001.5,4001.4,3.5928573]
[1759002501838,0.46673591,4001.5,4001.4,6.8006573]
[1759002502533,0.68323591,4001.5,4001.4,5.35451865]
[1759002503134,0.46673591,4001.5,4001.4,5.35451865]
[1759002503329,0.46673591,4001.5,4001.4,6.8006573]
[1759002507542,0.33263591,4001.5,4001.4,6.8006573]
[1759002508144,0.46503591,4001.5,4001.4,6.8006573]
[1759002511244,0.3518,4002.0,4001.9,0.65713]
[1759002511449,3.7749,4002.5,4002.4,0.65707]
[1759002511746,3.7749,4002.5,4002.4,2.35420865]
[1759002512040,6.1570183,4002.5,4002.4,2.35420865]
[1759002512246,6.15982207,4002.5,4002.4,2.35719227]
[1759002513244,6.47232207,4002.5,4002.4,2.35719227]
[1759002516261,4.09020377,4002.5,4002.4,2.35719227]
[1759002516457,6.47232207,4002.5,4002.4,2.35719227]
[1759002516751,6.47232207,4002.5,4002.4,2.14959227]
[1759002517243,6.92178207,4002.5,4002.4,2.14959227]
[1759002518247,6.47232207,4002.5,4002.4,2.14959227]
[1759002519955,6.92178207,4002.5,4002.4,1.70012227]
[1759002520448,6.92178207,4002.5,4002.4,2.14959227]
[1759002523247,6.92178207,4002.5,4002.4,1.70012227]
[1759002524252,6.92178207,4002.5,4002.4,2.36914832]
[1759002524956,1.12356,4002.9,4002.5,0.124]
[1759002525149,0.44944,4002.7,4002.6,0.9220579]
[1759002525347,0.44944,4002.7,4002.6,1.2412579]
[1759002525546,0.44944,4002.7,4002.6,2.68739655]
[1759002526053,0.45175232,4002.7,4002.6,2.68739655]
[1759002529768,0.45175232,4002.7,4002.6,1.2412579]
[1759002530057,6.66364833,4002.7,4002.6,0.251]
[1759002530254,6.66364833,4002.7,4002.5,0.6710579]
[1759002530556,6.66364833,4002.7,4002.6,0.251]
[1759002531957,6.66364833,4002.7,4002.6,0.5702]
[1759002534258,5.21750968,4002.7,4002.6,0.5702]
[1759002534460,6.66364833,4002.7,4002.6,0.5702]
[1759002536161,6.66364833,4002.7,4002.6,1.2412579]
[1759002538056,1.66364833,4002.7,4002.6,1.2412579]
[1759002539063,1.66364833,4002.7,4002.6,0.9902579]
[1759002539259,1.66364833,4002.7,4002.6,1.2412579]
[1759002542367,0.21750968,4002.7,4002.6,1.6726579]
[1759002542564,0.21750968,4002.7,4002.6,1.0016]
[1759002548072,0.21750968,4002.7,4002.6,4.2094]
[1759002551368,0.21750968,4002.7,4002.6,4.65885]
[1759002551566,0.00231232,4002.7,4002.6,4.65885]
[1759002551764,0.45175232,4002.7,4002.6,4.65885]
[1759002552870,0.00231232,4002.7,4002.6,4.65885]
[1759002566282,0.00231232,4002.7,4002.6,4.40785]
[1759002566474,0.00231232,4002.7,4002.6,4.65785]
[1759002572386,3.2078,4003.5,4003.4,0.7511]
[1759002572387,3.65715,4003.5,4003.4,0.7511]
[1759002573279,3.65915696,4003.5,4003.4,0.7511]
[1759002601312,3.20980696,4003.5,4003.4,0.7511]
[1759002601509,0.00200696,4003.5,4003.4,5.7511]
[1759002601711,0.00200696,4003.5,4003.4,6.42387489]
[1759002601911,0.47912509,4004.3,4004.2,0.5356]
[1759002602112,0.47912509,4004.3,4004.2,0.7476]
[1759002602810,0.48134232,4004.3,4004.2,0.7476]
[1759002609622,0.48134232,4004.3,4004.2,0.7425]
[1759002610014,0.03208232,4004.3,4004.2,0.7425]
[1759002616827,0.48133232,4004.3,4004.2,0.7425]
[1759002619119,0.03208232,4004.3,4004.2,0.7425]
[1759002620213,0.48133232,4004.3,4004.2,0.7425]
[1759002621426,0.00221723,4004.3,4004.2,7.1873781]
[1759002621617,3.2078,4005.0,4004.2,7.1873781]
[1759002621822,0.44915,4005.3,4005.2,0.4173]
[1759002622121,0.44915,4005.3,4005.2,0.2259]
[1759002622429,4.12772,4005.5,4005.4,0.4173]
[1759002622625,4.33932,4005.5,4005.4,0.4173]
[1759002622822,4.34128434,4005.5,4005.4,0.41908057]
[1759002624224,4.34128434,4005.5,4005.4,0.74888057]
[1759002624423,4.63688434,4005.5,4005.4,0.74888057]
[1759002625430,4.63688434,4005.5,4005.4,0.54028057]
[1759002625627,4.63688434,4005.5,4005.4,0.33158057]
[1759002626624,4.63688434,4005.5,4005.4,0.55338057]
[1759002629531,6.08176244,4005.5,4005.4,0.55338057]
[1759002632025,0.88337,4005.1,4005.0,0.3298]
[1759002632227,2.6238481,4005.1,4005.0,0.3298]
[1759002633033,2.6238481,4005.1,4005.0,0.33221099]
[1759002633228,2.6238481,4005.1,4005.0,0.00241099]
[1759002633431,2.8738481,4005.1,4005.0,0.00241099]
[1759002634124,2.8738481,4005.1,4005.0,0.33221099]
[1759002634329,2.8738481,4005.1,4005.0,0.55401099]
[1759002634533,2.8738481,4005.1,4005.0,0.69051099]
[1759002634925,2.8738481,4005.1,4005.0,0.33221099]
[1759002639629,2.8738481,4005.1,4005.0,0.00241099]
[1759002663251,0.9798,4005.1,4005.0,0.00241099]
[1759002663448,1.42897,4005.1,4005.0,0.67001099]
[1759002664652,1.42897,4005.1,4005.0,0.53341099]
[1759002664854,1.42897,4005.1,4005.0,0.31271099]
[1759002674961,0.9798,4005.1,4005.0,0.31271099]
[1759002676364,1.42897,4005.1,4005.0,0.31271099]
[1759002677862,0.9798,4005.1,4005.0,0.31271099]
[1759002678252,1.42897,4005.1,4005.0,0.31271099]
[1759002681666,1.42897,4005.1,4005.0,0.00241099]
[1759002682760,0.2099,4004.6,4004.4,0.67204959]
[1759002682967,0.7483,4004.6,4004.5,0.2114]
[1759002683674,0.7462,4004.7,4004.6,0.66323]
[1759002683972,0.7462,4004.7,4004.6,0.87944007]
[1759002684861,0.7462,4004.7,4004.6,1.21584007]
[1759002690971,0.7462,4004.7,4004.6,0.76661007]
[1759002691171,0.7462,4004.7,4004.6,0.55291007]
[1759002691672,0.7462,4004.7,4004.6,1.00214007]
[1759002692166,0.7462,4004.7,4004.6,0.55291007]
[1759002692572,0.7462,4004.7,4004.6,1.00214007]
[1759002693368,0.7462,4004.7,4004.6,1.21584007]
[1759002702873,0.427,4004.7,4004.6,1.21584007]
[1759002703075,0.2124,4004.7,4004.6,1.21584007]
[1759002707184,0.2124,4004.7,4004.6,0.76661007]
[1759002712396,0.4492,4004.9,4004.6,0.76661007]
[1759002712589,0.3192,4004.9,4004.7,0.3364]
[1759002712798,0.2124,4004.8,4004.7,0.7641]
[1759002717688,0.25,4005.0,4004.9,0.2209]
[1759002717897,0.25,4005.0,4004.9,0.7524]
[1759002718097,0.25,4005.0,4004.9,0.6843]
[1759002718299,0.5649,4005.0,4004.9,0.6843]
[1759002718805,0.7856,4005.0,4004.9,0.6843]
[1759002719793,0.9216,4005.0,4004.9,0.6843]
[1759002722294,1.1405,4005.0,4004.9,0.6843]
[1759002723194,1.1405,4005.0,4004.6,0.45174007]
[1759002723195,1.58968,4005.0,4004.6,0.00251007]
[1759002723397,0.7545,4003.9,4003.8,0.2209]
[1759002723604,0.7545,4003.9,4003.2,3.2078]